bitfinex/quotes_SOLUSD_20240612
["timestamp","ask_amount","ask_price","bid_price","bid_amount"]
[1718219839889,2.3465,157.68,157.61,0.17]
[1718219840090,9.3835,157.73,157.61,0.68]
[1718219840091,14.0752,157.73,157.61,0.68]
[1718219840307,2.3463,157.7,157.61,0.68]
[1718219840606,20.0,157.72,157.61,0.68]
[1718219840810,2.3462,157.7,157.61,0.68]
[1718219841191,2.3462,157.7,157.61,10.197187]
[1718219841387,2.3462,157.7,157.61,0.68]
[1718219841614,20.0,157.73,157.61,0.68]
[1718219841814,2.346,157.71,157.61,0.68]
[1718219842024,2.346,157.71,157.63,0.17]
[1718219842191,4.6921,157.72,157.63,0.68]
[1718219842386,2.3462,157.7,157.63,0.68]
[1718219842995,2.3464,157.69,157.63,0.51]
[1718219843299,2.3462,157.7,157.63,0.51]
[1718219843492,15.6031,157.76,157.63,0.51]
[1718219843823,2.346,157.71,157.63,0.51]
[1718219844020,7.0346,157.8,157.66,0.17]
[1718219844229,2.3454,157.76,157.66,0.68]
[1718219844508,2.3459,157.72,157.66,0.51]
[1718219844719,5.08980517,157.8,157.66,0.34]
[1718219844899,2.3458,157.73,157.66,0.17]
[1718219845105,2.346,157.72,157.66,0.17]
[1718219845308,19.1,157.79,157.66,0.17]
[1718219845494,9.3824,157.75,157.64,0.17]
[1718219845699,2.3459,157.72,157.64,0.68]
[1718219845893,4.6917,157.73,157.62,6.4496]
[1718219846094,2.3464,157.69,157.62,6.4496]
[1718219846321,20.0,157.71,157.62,6.4496]
[1718219846510,2.346,157.72,157.62,6.4496]
[1718219846698,2.346,157.71,157.62,6.4496]
[1718219847313,2.346,157.71,157.63,0.17]
[1718219847496,2.3465,157.68,157.63,0.68]
[1718219847701,2.3464,157.69,157.63,0.17]
[1718219848013,2.3464,157.69,157.62,6.4496]
[1718219848208,2.3463,157.7,157.62,6.4496]
[1718219848414,7.0361,157.76,157.62,106.4496]
[1718219848917,2.3449,157.79,157.67,6.7785]
[1718219849114,2.3451,157.78,157.67,6.7785]
[1718219849418,2.3452,157.77,157.68,0.34]
[1718219849592,2.345,157.79,157.69,0.34]
[1718219849791,2.3449,157.79,157.7,0.34]
[1718219849996,27.7053,157.84,157.72,0.17]
[1718219850225,2.3447,157.81,157.72,0.34]
[1718219850430,2.3447,157.8,157.73,0.34]
[1718219850603,4.6887,157.83,157.73,0.34]
[1718219850801,9.3747,157.88,157.76,0.17]
[1718219851001,9.3747,157.88,157.76,7.8209]
[1718219851225,2.3439,157.86,157.76,7.8209]
[1718219851419,2.344,157.85,157.76,7.8209]
[1718219851741,2.3448,157.8,157.76,6.4227]
[1718219852040,2.345,157.78,157.76,6.4227]
[1718219852214,15.9436,157.87,157.72,7.0774]
[1718219852404,2.3445,157.82,157.72,7.0774]
[1718219852604,2.344,157.85,157.75,100.0]
[1718219852802,2.344,157.85,157.76,20.0]
[1718219853207,4.6866,157.9,157.76,20.0]
[1718219853407,2.3437,157.87,157.77,0.34]
[1718219853619,2.3439,157.86,157.78,0.34]
[1718219853805,5.19713504,157.92,157.81,0.17]
[1718219854006,2.3432,157.91,157.81,1.3982]
[1718219854211,2.3432,157.9,157.81,1.3982]
[1718219854611,11.7141,157.93,157.81,1.3982]
[1718219854824,4.6865,157.9,157.81,0.7182]
[1718219855018,2.3434,157.89,157.82,0.51]
[1718219855309,120.8428213,157.96,157.81,0.7182]
[1718219855519,2.3439,157.86,157.81,0.7182]
[1718219856032,4.6869,157.89,157.81,0.7182]
[1718219856033,2.344,157.85,157.81,0.7182]
[1718219856434,2.344,157.85,157.8,6.3191]
[1718219856730,2.3439,157.86,157.8,6.3191]
[1718219856942,2.3437,157.87,157.8,6.3191]
[1718219857235,2.3438,157.86,157.8,6.3191]
[1718219857448,2.3436,157.88,157.81,0.17]
[1718219857635,2.3437,157.87,157.81,0.17]
[1718219857825,2.3438,157.86,157.8,6.3191]
[1718219858447,2.3437,157.87,157.8,6.3191]
[1718219858833,2.3438,157.86,157.8,6.3191]
[1718219859032,2.3437,157.87,157.8,6.3191]
[1718219859422,27.0298,157.9,157.81,0.17]
[1718219859423,2.3436,157.88,157.81,0.17]
[1718219859643,20.0,157.9,157.81,0.68]
[1718219859964,2.3433,157.9,157.81,0.68]
[1718219860248,2.3431,157.91,157.81,0.68]
[1718219860422,4.686,157.92,157.81,0.68]
[1718219860743,7.0277,157.95,157.81,0.68]
[1718219860916,2.3433,157.9,157.81,0.68]
[1718219861317,20.8428213,157.96,157.83,0.17]
[1718219861561,2.3429,157.92,157.83,0.68]
[1718219861712,4.6848,157.96,157.83,0.68]
[1718219861713,2.3428,157.93,157.83,0.68]
[1718219861917,26.1263,157.98,157.83,0.68]
[1718219861918,2.342,157.98,157.87,0.17]
[1718219862217,4.6835,158.0,157.88,6.4725]
[1718219862415,7.53176678,158.0,157.89,0.34]
[1718219862625,5.18996678,158.0,157.9,0.17]
[1718219862826,2.3421,157.98,157.9,0.17]
[1718219863023,35.5815,158.01,157.88,6.4725]
[1718219863239,16.4815,158.01,157.89,0.17]
[1718219863438,2.3424,157.96,157.89,0.51]
[1718219863670,2.3426,157.94,157.88,6.4725]
[1718219863841,4.6842,157.98,157.88,6.4725]
[1718219863842,2.3428,157.93,157.88,6.4725]
[1718219864049,11.7125,157.95,157.88,6.4725]
[1718219864239,20.0,157.97,157.83,6.4909]
[1718219864240,2.3432,157.9,157.83,6.4909]
[1718219864650,20.0,157.97,157.83,6.4909]
[1718219864954,2.3428,157.93,157.83,6.4909]
[1718219865133,2.3424,157.96,157.86,100.0]
[1718219865339,2.3425,157.95,157.86,100.0]
[1718219865644,2.3418,158.0,157.89,0.17]
[1718219865821,2.3422,157.97,157.89,0.68]
[1718219866020,4.6833,158.01,157.89,0.68]
[1718219866256,2.3419,157.99,157.91,0.17]
[1718219866551,2.342,157.98,157.91,0.68]
[1718219866730,2.342,157.98,157.91,0.51]
[1718219866942,2.3424,157.96,157.9,6.9299]
[1718219867354,2.3423,157.97,157.91,0.17]
[1718219867527,2.3421,157.98,157.9,6.9299]
[1718219867726,2.342,157.99,157.91,0.17]
[1718219867930,20.0,158.01,157.91,0.68]
[1718219868246,2.3421,157.98,157.91,0.68]
[1718219868622,2.342,157.98,157.91,0.68]
[1718219868823,24.6834,158.01,157.91,0.68]
[1718219869120,11.7105,157.98,157.9,6.9299]
[1718219869346,2.3422,157.97,157.9,6.9299]
[1718219869649,4.684,157.99,157.9,6.9299]
[1718219869822,9.3675,158.0,157.9,6.9299]
[1718219870019,2.3425,157.95,157.9,6.9299]
[1718219870219,20.0,157.99,157.9,6.2117]
[1718219870475,2.3431,157.91,157.86,7.2816]
[1718219870631,2.343,157.92,157.86,7.2816]
[1718219870827,2.3428,157.93,157.86,7.2816]
[1718219871027,24.6852,157.95,157.86,7.2816]
[1718219871227,2.3433,157.9,157.86,7.2816]
[1718219871534,2.3433,157.9,157.86,6.5634]
[1718219871739,2.3434,157.89,157.86,6.5634]
[1718219871937,2.3435,157.88,157.82,7.3622]
[1718219872137,2.3432,157.91,157.82,7.3622]
[1718219872636,2.343,157.92,157.82,7.3622]
[1718219872968,2.343,157.92,157.83,0.34]
[1718219873171,2.3433,157.9,157.83,0.34]
[1718219873852,20.0,157.93,157.82,7.3622]
[1718219874161,2.3431,157.91,157.82,7.3622]
[1718219874365,20.0,157.94,157.82,7.3622]
[1718219874532,2.3431,157.91,157.82,107.3622]
[1718219874731,2.3429,157.92,157.82,107.3622]
[1718219874970,2.3429,157.92,157.83,0.34]
[1718219875147,4.6845,157.97,157.85,0.17]
[1718219875356,9.3682,157.99,157.87,0.17]
[1718219875583,2.3426,157.95,157.87,0.17]
[1718219875889,7.027,157.96,157.86,0.51]
[1718219876042,2.3428,157.93,157.86,0.51]
[1718219876242,2.3427,157.94,157.86,0.51]
[1718219876642,4.6845,157.97,157.87,0.17]
[1718219876843,2.3426,157.94,157.87,0.17]
[1718219877576,2.3428,157.93,157.86,0.51]
[1718219877751,2.3434,157.89,157.82,7.3622]
[1718219878753,2.3435,157.89,157.82,7.3622]
[1718219878955,2.3435,157.89,157.83,0.17]
[1718219879148,11.7149,157.92,157.82,7.3622]
[1718219879364,4.6862,157.91,157.82,7.3622]
[1718219879567,2.3431,157.91,157.82,7.3622]
[1718219880472,2.3433,157.9,157.83,0.34]
[1718219880660,2.3436,157.88,157.82,7.3622]
[1718219881067,2.3437,157.87,157.82,7.3622]
[1718219881388,2.3439,157.86,157.82,6.644]
[1718219881675,4.6869,157.89,157.82,6.644]
[1718219881880,2.3437,157.87,157.82,6.644]
[1718219882083,4.6868,157.89,157.82,6.644]
[1718219882373,2.3434,157.89,157.82,6.644]
[1718219882577,22.3433,157.9,157.82,6.644]
[1718219882871,2.3437,157.87,157.82,6.644]
[1718219883062,2.3435,157.88,157.82,6.644]
[1718219883791,20.0,157.92,157.82,6.644]
[1718219883792,20.0,157.92,157.83,0.17]
[1718219884076,2.343,157.92,157.83,0.68]
[1718219884446,4.6843,157.98,157.86,0.17]
[1718219884649,92.28200929,158.03,157.86,0.68]
[1718219884650,2.3426,157.94,157.86,0.68]
[1718219884846,2.3428,157.93,157.86,0.68]
[1718219885087,16.1256,158.01,157.87,6.3804]
[1718219885258,2.3423,157.97,157.88,120.68]
[1718219885578,2.3422,157.97,157.88,20.51]
[1718219885775,2.342,157.98,157.89,0.17]
[1718219885957,2.342,157.98,157.88,100.51]
[1718219885958,2.3426,157.94,157.87,6.3804]
[1718219886152,4.6845,157.97,157.87,6.3804]
[1718219886470,2.3424,157.96,157.87,6.3804]
[1718219886978,4.6841,157.98,157.87,6.3804]
[1718219887181,39.1,157.99,157.87,6.3804]
[1718219887376,2.3431,157.91,157.87,6.3804]
[1718219887885,2.3432,157.9,157.83,6.276]
[1718219888179,20.0,157.95,157.83,6.276]
[1718219888180,4.6857,157.93,157.83,6.276]
[1718219888394,2.3432,157.9,157.83,6.276]
[1718219888681,20.0,157.92,157.83,6.276]
[1718219889062,2.3435,157.89,157.83,6.276]
[1718219889464,2.3435,157.88,157.83,6.276]
[1718219889783,20.0,157.92,157.78,6.252]
[1718219889784,2.3442,157.84,157.78,6.252]
[1718219890151,39.1,157.88,157.78,6.252]
[1718219890580,39.1,157.88,157.64,186.79504568]
[1718219890581,2.3446,157.81,157.74,6.4595]
[1718219890778,2.3441,157.84,157.74,6.4595]
[1718219890980,4.6875,157.87,157.74,6.4595]
[1718219891182,2.3442,157.84,157.74,6.4595]
[1718219891358,20.0,157.86,157.74,6.4595]
[1718219891858,2.3443,157.83,157.74,6.4595]
[1718219892260,2.3441,157.84,157.74,6.4595]
[1718219892580,2.3445,157.82,157.74,6.4595]
[1718219892957,2.3446,157.81,157.74,6.4595]
[1718219893153,2.3447,157.8,157.74,6.4595]
[1718219893581,20.0,157.84,157.74,6.4595]
[1718219893892,2.3446,157.81,157.74,6.4595]
[1718219894253,2.3448,157.8,157.74,6.4595]
[1718219894459,4.6887,157.83,157.74,6.4595]
[1718219895076,2.3448,157.8,157.74,6.4595]
[1718219895393,19.1,157.83,157.7,0.7182]
[1718219895564,9.3792,157.8,157.69,6.3012]
[1718219895766,4.6894,157.8,157.69,6.3012]
[1718219896069,24.6889,157.82,157.69,6.3012]
[1718219896374,2.3447,157.81,157.69,6.3012]
[1718219896891,20.0,157.83,157.72,100.0]
[1718219897083,2.3443,157.83,157.74,0.7182]
[1718219897265,9.3766,157.84,157.74,0.7182]
[1718219897475,2.3446,157.81,157.74,0.7182]
[1718219898099,24.6886,157.83,157.74,0.7182]
[1718219898100,2.3445,157.82,157.74,0.7182]
[1718219898279,2.3446,157.81,157.74,0.7182]
[1718219898692,2.3447,157.8,157.74,0.7182]
[1718219898881,21.0951,157.86,157.74,0.7182]
[1718219899078,5.01703311,157.88,157.74,0.7182]
[1718219899281,16.406,157.87,157.75,0.68]
[1718219899600,2.3442,157.84,157.75,0.68]
[1718219899816,2.3445,157.82,157.75,0.68]
[1718219899984,4.6883,157.84,157.75,0.68]
[1718219900307,19.1,157.89,157.75,0.68]
[1718219900489,14.0632,157.86,157.75,0.68]
[1718219900684,2.3442,157.84,157.75,0.68]
[1718219901090,20.0,157.85,157.75,0.68]
[1718219901289,35.6654,157.91,157.75,0.68]
[1718219901480,19.1,157.89,157.76,6.2926]
[1718219901681,19.1,157.87,157.76,6.2926]
[1718219901905,7.0314,157.87,157.76,6.2926]
[1718219902080,4.6883,157.84,157.76,6.2926]
[1718219902288,2.3442,157.84,157.76,6.2926]
[1718219902789,4.6878,157.86,157.76,6.2926]
[1718219902790,2.3437,157.87,157.76,6.2926]
[1718219902990,2.3437,157.87,157.77,0.34]
[1718219903303,6.3565,157.92,157.77,0.34]
[1718219903304,2.3434,157.89,157.77,100.68]
[1718219903616,19.1,157.92,157.77,0.68]
[1718219903814,2.3441,157.85,157.77,20.68]
[1718219904100,2.3436,157.88,157.79,0.17]
[1718219904304,2.3439,157.86,157.79,0.68]
[1718219904487,4.6872,157.88,157.78,0.17]
[1718219904688,4.6871,157.88,157.78,0.17]
[1718219904898,2.3441,157.85,157.78,0.17]
[1718219905208,0.17,157.89,157.76,6.2926]
[1718219905407,2.3446,157.81,157.76,6.2926]
[1718219906090,4.6887,157.83,157.76,6.2926]
[1718219906414,2.3449,157.79,157.76,6.2926]
[1718219907187,2.3447,157.81,157.76,6.2926]
[1718219907388,20.0,157.82,157.76,6.2926]
[1718219907591,2.3448,157.8,157.76,6.2926]
[1718219908026,2.3451,157.78,157.76,6.2926]
[1718219908192,2.3451,157.78,157.74,0.7182]
[1718219908193,2.3451,157.77,157.72,6.3161]
[1718219908512,24.6889,157.82,157.72,6.3161]
[1718219909009,2.345,157.78,157.72,6.3161]
[1718219909184,2.3451,157.77,157.72,6.3161]
[1718219909384,2.3454,157.76,157.72,6.3161]
[1718219910085,2.3452,157.77,157.72,6.3161]
[1718219910287,2.345,157.78,157.72,6.3161]
[1718219910485,36.4133,157.8,157.72,6.3161]
[1718219910713,20.0,157.8,157.72,6.3161]
[1718219910926,2.3448,157.8,157.72,6.3161]
[1718219911093,2.3443,157.83,157.72,6.3161]
[1718219911416,2.3441,157.84,157.73,0.68]
[1718219911718,2.3445,157.82,157.73,0.68]
[1718219911881,2.3445,157.82,157.72,6.3161]
[1718219911882,2.3451,157.78,157.72,6.3161]
[1718219912080,9.3791,157.8,157.72,6.3161]
[1718219912283,7.0341,157.81,157.72,6.3161]
[1718219912489,2.345,157.78,157.72,6.3161]
[1718219912698,20.0,157.8,157.72,6.3161]
[1718219912888,2.3451,157.78,157.72,6.3161]
[1718219913090,2.3451,157.77,157.72,6.3161]
[1718219913298,20.0,157.81,157.72,6.3161]
[1718219913516,2.3447,157.8,157.72,6.3161]
[1718219913703,22.3447,157.81,157.72,6.3161]
[1718219913891,2.3446,157.81,157.72,6.3161]
[1718219914090,2.3447,157.8,157.72,6.3161]
[1718219914290,2.3449,157.79,157.72,6.3161]
[1718219914909,20.0,157.8,157.72,6.3161]
[1718219915099,4.6904,157.77,157.72,6.3161]
[1718219915503,20.0,157.82,157.72,6.3161]
[1718219915693,29.3778,157.82,157.72,6.3161]
[1718219915898,2.3448,157.8,157.72,6.3161]
[1718219916101,4.6892,157.81,157.72,6.3161]
[1718219916302,2.3453,157.76,157.72,6.3161]
[1718219916507,20.0,157.82,157.72,6.3161]
[1718219916508,2.3455,157.75,157.72,6.3161]
[1718219916700,2.3454,157.76,157.72,6.3161]
[1718219917112,2.3455,157.75,157.72,6.3161]
[1718219917421,2.3454,157.76,157.72,6.3161]
[1718219917598,2.3452,157.77,157.72,6.3161]
[1718219918423,4.6892,157.81,157.72,6.3161]
[1718219918624,2.3449,157.79,157.72,6.3161]
[1718219919005,24.6895,157.8,157.72,6.3161]
[1718219919212,2.3451,157.78,157.72,6.3161]
[1718219919522,2.3452,157.77,157.72,6.3161]
[1718219920101,2.3453,157.76,157.72,6.3161]
[1718219920300,7.0355,157.77,157.72,6.3161]
[1718219920507,9.3802,157.78,157.72,6.3161]
[1718219920508,2.3454,157.76,157.72,6.3161]
[1718219920710,2.3454,157.75,157.72,6.3161]
[1718219921126,2.3454,157.76,157.72,6.3161]
[1718219921534,4.6899,157.79,157.72,6.3161]
[1718219921818,2.3449,157.79,157.72,6.3161]
[1718219922001,20.0,157.8,157.72,6.3161]
[1718219922203,2.345,157.78,157.72,6.3161]
[1718219922400,22.3447,157.8,157.72,6.3161]
[1718219922623,2.3445,157.81,157.73,0.51]
[1718219922799,21.0951,157.86,157.73,0.34]
[1718219923002,2.3446,157.81,157.74,0.17]
[1718219923197,4.6887,157.83,157.73,0.34]
[1718219923433,2.3445,157.81,157.74,0.17]
[1718219923741,2.3445,157.82,157.74,0.17]
[1718219923924,2.3443,157.83,157.74,0.17]
[1718219924225,11.7204,157.85,157.74,0.17]
[1718219924226,4.6875,157.87,157.75,0.7182]
[1718219924527,2.3439,157.86,157.77,6.6224]
[1718219924723,2.3437,157.87,157.78,0.17]
[1718219924929,2.3437,157.87,157.78,0.68]
[1718219926507,7.0296,157.91,157.78,0.68]
[1718219926817,2.3434,157.89,157.78,0.68]
[1718219927021,14.0603163,157.91,157.78,0.68]
[1718219927218,4.6863,157.91,157.78,0.68]
[1718219927424,2.3437,157.87,157.81,2.3445]
[1718219927728,2.3436,157.88,157.82,2.3444]
[1718219927931,2.3439,157.86,157.8,2.3446]
[1718219928106,2.344,157.85,157.8,2.3447]
[1718219928422,2.344,157.85,157.79,2.3448]
[1718219928609,9.3746,157.88,157.78,0.34]
[1718219928921,9.3748,157.87,157.78,0.17]
[1718219929236,9.3748,157.87,157.77,6.9624]
[1718219929237,2.3437,157.87,157.81,2.3445]
[1718219929414,25.7029,157.97,157.82,0.17]
[1718219929731,25.7029,157.97,157.82,0.34]
[1718219929732,6.6029,157.97,157.82,0.34]
[1718219929906,7.0294,157.91,157.81,6.3174]
[1718219930100,2.3441,157.85,157.81,6.3174]
[1718219930630,9.3735,157.9,157.81,6.3174]
[1718219930631,2.3443,157.83,157.81,6.3174]
[1718219930805,2.3441,157.84,157.81,6.3174]
[1718219931007,4.6876,157.87,157.81,6.3174]
[1718219931008,2.344,157.85,157.81,6.3174]
[1718219931709,4.6856,157.93,157.82,2.3443]
[1718219931916,2.3434,157.89,157.82,2.3443]
[1718219932428,20.0,157.92,157.84,2.344]
[1718219932429,2.3431,157.91,157.84,2.344]
[1718219933716,2.3435,157.89,157.81,6.4874]
[1718219933920,2.3435,157.89,157.82,0.17]
[1718219934112,2.3435,157.89,157.81,6.4874]
[1718219934310,2.3432,157.9,157.81,6.4874]
[1718219934531,4.6852,157.95,157.83,0.17]
[1718219934742,2.3428,157.93,157.84,0.7182]
[1718219935026,2.3427,157.94,157.86,6.0086]
[1718219935210,2.3425,157.95,157.86,6.0086]
[1718219935532,2.3428,157.93,157.86,6.0086]
[1718219935720,2.3425,157.95,157.87,0.34]
[1718219935919,2.3428,157.93,157.87,0.17]
[1718219936127,2.343,157.92,157.86,6.0086]
[1718219936330,2.3434,157.89,157.86,6.0086]
[1718219936625,4.6858,157.93,157.86,6.0086]
[1718219936836,2.3432,157.9,157.86,6.0086]
[1718219937436,2.3431,157.91,157.86,6.0086]
[1718219937909,2.3432,157.9,157.86,6.0086]
[1718219940034,4.6859,157.92,157.86,6.0086]
[1718219940248,2.3433,157.9,157.86,6.0086]
[1718219940528,11.7135,157.94,157.86,6.0086]
[1718219940732,20.0,157.93,157.86,6.0086]
[1718219941032,2.3431,157.91,157.86,6.0086]
[1718219941915,2.3433,157.9,157.86,6.0086]
[1718219942226,2.3437,157.87,157.82,6.3853]
[1718219942426,4.6868,157.89,157.82,6.3853]
[1718219942625,11.717,157.89,157.82,6.3853]
[1718219942818,2.3438,157.87,157.82,6.3853]
[1718219943207,20.0,157.9,157.83,2.3442]
[1718219943433,2.3437,157.87,157.82,6.3853]
[1718219944412,38.3153,157.94,157.83,0.17]
[1718219944621,2.3427,157.94,157.83,0.68]
[1718219944940,18.9102,157.98,157.85,0.17]
[1718219945235,2.3424,157.96,157.88,6.9654]
[1718219945442,2.3422,157.97,157.88,6.9654]
[1718219945624,2.3422,157.97,157.89,0.17]
[1718219945935,2.3422,157.97,157.89,0.34]
[1718219946142,11.7078,158.02,157.89,0.34]
[1718219946318,7.0248,158.02,157.9,0.17]
[1718219946517,11.7081,158.01,157.9,0.34]
[1718219946714,2.3418,158.0,157.9,0.34]
[1718219946939,2.3419,157.99,157.9,0.34]
[1718219947243,2.3422,157.97,157.9,0.34]
[1718219948144,4.6841,157.98,157.89,0.17]
[1718219948456,4.95659316,158.03,157.89,0.34]
[1718219948626,4.6831,158.02,157.9,0.34]
[1718219948941,2.342,157.99,157.9,0.97340485]
[1718219949125,2.342,157.98,157.9,0.34]
[1718219949321,2.3416,158.01,157.92,0.17]
[1718219949523,7.0249,158.01,157.9,0.17]
[1718219949744,2.3423,157.97,157.9,0.17]
[1718219950041,2.342,157.98,157.9,0.34]
[1718219950244,2.342,157.98,157.91,0.34]
[1718219950413,6.13780627,158.06,157.92,0.34]
[1718219950616,2.3413,158.04,157.94,0.17]
[1718219950819,2.3413,158.03,157.95,6.0817]
[1718219951040,2.3413,158.03,157.96,0.34]
[1718219951346,2.3414,158.02,157.95,6.0817]
[1718219951647,24.25781031,158.06,157.89,6.0817]
[1718219951945,9.369,157.97,157.89,6.0817]
[1718219952148,9.3703,157.95,157.89,6.0817]
[1718219952437,19.1,158.0,157.89,6.0817]
[1718219952438,2.3428,157.93,157.89,6.0817]
[1718219952743,2.3429,157.92,157.89,6.0817]
[1718219952924,2.3431,157.91,157.89,6.0817]
[1718219953244,2.3427,157.94,157.89,6.0817]
[1718219953427,22.3425,157.95,157.89,6.0817]
[1718219953623,2.3425,157.95,157.89,6.0817]
[1718219954025,2.3424,157.96,157.89,6.0817]
[1718219954340,2.3423,157.96,157.89,6.0817]
[1718219954724,2.3421,157.98,157.89,6.0817]
[1718219954922,2.3421,157.98,157.9,0.34]
[1718219955219,4.683,158.02,157.9,0.34]
[1718219955433,9.3657,158.03,157.91,0.17]
[1718219955633,4.683,158.02,157.91,0.34]
[1718219955949,4.683,158.02,157.91,0.17]
[1718219955950,11.7075,158.02,157.91,0.17]
[1718219956241,2.3419,157.99,157.91,0.34]
[1718219956422,4.683,158.02,157.92,0.34]
[1718219956423,2.342,157.98,157.92,0.34]
[1718219956833,2.3419,157.99,157.92,0.34]
[1718219957030,21.0712,158.04,157.92,0.34]
[1718219957228,20.0,158.03,157.92,0.34]
[1718219957430,20.0,158.03,157.89,6.0817]
[1718219957431,2.3423,157.96,157.89,6.0817]
[1718219957650,20.0,157.99,157.89,6.0817]
[1718219957835,0.34,158.04,157.9,100.0]
[1718219957836,2.3417,158.01,157.9,100.0]
[1718219958251,2.3417,158.01,157.89,6.0817]
[1718219958544,20.0,158.03,157.89,6.0817]
[1718219958545,2.3419,157.99,157.89,6.0817]
[1718219958760,2.342,157.98,157.9,0.68]
[1718219959079,2.3419,157.99,157.9,0.68]
[1718219959539,0.03950627,158.06,157.94,100.0]
[1718219959740,0.03950627,158.06,157.91,0.7182]
[1718219959741,2.38040627,158.06,157.97,0.17]
[1718219959939,2.38040627,158.06,157.97,0.68]
[1718219960163,0.03950627,158.06,157.97,0.68]
[1718219960548,2.38040627,158.06,157.97,20.68]
[1718219961154,2.341,158.05,157.97,20.68]
[1718219961362,2.38040627,158.06,157.97,20.68]
[1718219961563,2.341,158.05,157.97,20.68]
[1718219961874,0.03950627,158.06,157.97,0.51]
[1718219962055,2.3413,158.04,157.97,0.34]
[1718219962569,2.3413,158.03,157.96,7.2805]
[1718219963065,2.3412,158.04,157.96,7.2805]
[1718219963465,2.3416,158.01,157.96,7.2805]
[1718219963655,9.3649,158.04,157.96,6.5623]
[1718219963966,4.6833,158.01,157.92,6.7613]
[1718219964180,2.3421,157.98,157.92,6.7613]
[1718219964767,2.3413,158.03,157.92,6.7613]
[1718219964967,2.3414,158.03,157.93,100.0]
[1718219965177,20.03950627,158.06,157.93,100.0]
[1718219965385,0.03950627,158.06,157.96,6.3]
[1718219965673,2.38030627,158.06,157.97,0.51]
[1718219965844,2.341,158.05,157.97,0.51]
[1718219966273,0.03950627,158.06,157.97,0.51]
[1718219966274,0.03950627,158.06,157.99,0.7182]
[1718219967260,4.682,158.05,157.96,6.3]
[1718219967472,2.3413,158.03,157.96,6.3]
[1718219968077,0.20950627,158.06,157.96,6.3]
[1718219968375,2.3417,158.0,157.96,6.3]
[1718219968578,9.3666,158.01,157.89,7.1569]
[1718219968826,34.5,158.05,157.89,7.1569]
[1718219968827,2.3424,157.96,157.89,7.1569]
[1718219969067,11.7099,157.99,157.89,7.1569]
[1718219969068,2.3425,157.95,157.89,7.1569]
[1718219969266,2.3424,157.96,157.89,7.1569]
[1718219969466,2.3422,157.97,157.89,7.1569]
[1718219969776,2.3423,157.96,157.89,7.1569]
[1718219969954,2.3422,157.97,157.89,7.1569]
[1718219970161,2.3424,157.96,157.89,7.1569]
[1718219970577,2.3422,157.97,157.89,7.1569]
[1718219970980,2.3423,157.96,157.89,7.1569]
[1718219971177,2.3423,157.97,157.89,7.1569]
[1718219971480,2.3422,157.97,157.89,7.1569]
[1718219971976,2.3424,157.96,157.89,7.1569]
[1718219972174,2.3421,157.98,157.89,7.1569]